[Event "*** Titled Tuesday Blitz"]
[Site "Chess.com"]
[Date "2020.05.05"]
[Round "2"]
[White "DishonorOnYourCow"]
[Black "cassoulet"]
[Result "1-0"]
[WhiteElo "2332"]
[BlackElo "2596"]
[TimeControl "180+1"]
[EndTime "10:18:14 PDT"]
[Termination "DishonorOnYourCow won on time"]

1. d4 {[%clk 0:03:00.9]} 1... d5 {[%clk 0:02:55.6]} 2. c4 {[%clk 0:03:00.5]}
2... e5 {[%clk 0:02:55.2]} 3. dxe5 {[%clk 0:02:59.2]} 3... d4 {[%clk 0:02:55.1]}
4. Bf4 {[%clk 0:02:55.9]} 4... g5 {[%clk 0:02:42.4]} 5. Bg3 {[%clk 0:02:53.1]}
5... Nc6 {[%clk 0:02:40.7]} 6. h3 {[%clk 0:02:45.6]} 6... Bf5 {[%clk 0:02:32.2]}
7. Nf3 {[%clk 0:02:41]} 7... h5 {[%clk 0:02:19.5]} 8. Nbd2 {[%clk 0:02:01.1]}
8... a5 {[%clk 0:02:00]} 9. e4 {[%clk 0:01:49.4]} 9... dxe3 {[%clk 0:01:52.1]}
10. fxe3 {[%clk 0:01:50.3]} 10... Bc5 {[%clk 0:01:40.5]} 11. Bf2 {[%clk
0:01:29.3]} 11... Nb4 {[%clk 0:01:37.1]} 12. e4 {[%clk 0:01:16.8]} 12... Bxf2+
{[%clk 0:01:36.6]} 13. Kxf2 {[%clk 0:01:17.7]} 13... Be6 {[%clk 0:01:37.2]} 14.
Nb3 {[%clk 0:01:08]} 14... Qe7 {[%clk 0:01:05.3]} 15. a3 {[%clk 0:00:56.4]}
15... Nc6 {[%clk 0:01:01]} 16. Nbd4 {[%clk 0:00:39.3]} 16... Rd8 {[%clk
0:00:58.1]} 17. Qa4 {[%clk 0:00:26.2]} 17... Bd7 {[%clk 0:00:42.6]} 18. Nxc6
{[%clk 0:00:25.2]} 18... Bxc6 {[%clk 0:00:43.5]} 19. Qb3 {[%clk 0:00:24.4]}
19... Nh6 {[%clk 0:00:31.4]} 20. Be2 {[%clk 0:00:23.8]} 20... g4 {[%clk
0:00:31.3]} 21. hxg4 {[%clk 0:00:15.7]} 21... Nxg4+ {[%clk 0:00:30.7]} 22. Kg3
{[%clk 0:00:15]} 22... Nxe5 {[%clk 0:00:30.3]} 23. Rhd1 {[%clk 0:00:07.1]} 23...
Rg8+ {[%clk 0:00:24.5]} 24. Kh3 {[%clk 0:00:06.4]} 24... Bd7+ {[%clk 0:00:19]}
25. Kh2 {[%clk 0:00:04.8]} 25... Ng4+ {[%clk 0:00:15.3]} 26. Kg1 {[%clk
0:00:03.9]} 26... Qc5+ {[%clk 0:00:15.2]} 27. Nd4 {[%clk 0:00:02.9]} 27... Bc6
{[%clk 0:00:06.4]} 28. Qc3 {[%clk 0:00:03]} 1-0

[Event "*** Titled Tuesday Blitz"]
[Site "Chess.com"]
[Date "2020.05.05"]
[Round "2"]
[White "GelmanAlexander"]
[Black "Zkid"]
[Result "0-1"]
[WhiteElo "2530"]
[BlackElo "2810"]
[TimeControl "180+1"]
[EndTime "10:18:15 PDT"]
[Termination "Zkid won by resignation"]

1. c4 {[%clk 0:03:00.9]} 1... e5 {[%clk 0:02:59.1]} 2. e3 {[%clk 0:02:54.3]}
2... Nc6 {[%clk 0:02:54.7]} 3. a3 {[%clk 0:02:54.3]} 3... g6 {[%clk 0:02:53.3]}
4. d3 {[%clk 0:02:53.6]} 4... Bg7 {[%clk 0:02:52.5]} 5. Nf3 {[%clk 0:02:53.6]}
5... Nf6 {[%clk 0:02:50.3]} 6. Nc3 {[%clk 0:02:54]} 6... O-O {[%clk 0:02:49.8]}
7. Be2 {[%clk 0:02:53.5]} 7... d5 {[%clk 0:02:38.6]} 8. cxd5 {[%clk 0:02:53.3]}
8... Nxd5 {[%clk 0:02:39.5]} 9. Bd2 {[%clk 0:02:53.6]} 9... Be6 {[%clk
0:02:33.3]} 10. O-O {[%clk 0:02:53]} 10... h6 {[%clk 0:02:27.8]} 11. Rc1 {[%clk
0:02:51.4]} 11... Qd7 {[%clk 0:02:24.2]} 12. Ne4 {[%clk 0:02:45.5]} 12... b6
{[%clk 0:02:22.7]} 13. Qc2 {[%clk 0:02:43.3]} 13... Nce7 {[%clk 0:02:19.9]} 14.
b4 {[%clk 0:02:40]} 14... Rfd8 {[%clk 0:02:11.5]} 15. Rfe1 {[%clk 0:02:23.4]}
15... f5 {[%clk 0:01:53.6]} 16. Ng3 {[%clk 0:02:22.4]} 16... f4 {[%clk
0:01:46.7]} 17. Ne4 {[%clk 0:02:18.2]} 17... Nf5 {[%clk 0:01:44.3]} 18. Bf1
{[%clk 0:02:07.1]} 18... g5 {[%clk 0:01:37.2]} 19. h3 {[%clk 0:02:05.5]} 19...
fxe3 {[%clk 0:01:33]} 20. fxe3 {[%clk 0:02:05.3]} 20... Nd6 {[%clk 0:01:31.2]}
21. Ng3 {[%clk 0:01:53.2]} 21... g4 {[%clk 0:01:16.3]} 22. hxg4 {[%clk
0:01:51.5]} 22... Bxg4 {[%clk 0:01:17.2]} 23. Be2 {[%clk 0:01:33]} 23... Rac8
{[%clk 0:01:06.5]} 24. Rf1 {[%clk 0:01:27.7]} 24... Ne7 {[%clk 0:00:57.4]} 25.
d4 {[%clk 0:01:03]} 25... exd4 {[%clk 0:00:44.1]} 26. exd4 {[%clk 0:00:56.6]}
26... Ndf5 {[%clk 0:00:39.9]} 27. Nxf5 {[%clk 0:00:51.7]} 27... Nxf5 {[%clk
0:00:40.8]} 28. Bc4+ {[%clk 0:00:42.1]} 28... Kh8 {[%clk 0:00:37.5]} 29. d5
{[%clk 0:00:38.8]} 29... b5 {[%clk 0:00:30.8]} 30. Ba2 {[%clk 0:00:32.7]} 30...
Bxf3 {[%clk 0:00:24.3]} 31. Rxf3 {[%clk 0:00:31.1]} 31... Nd4 {[%clk 0:00:24.3]}
32. Qe4 {[%clk 0:00:26.7]} 32... Re8 {[%clk 0:00:20.3]} 33. Qd3 {[%clk
0:00:22.9]} 33... Ne2+ {[%clk 0:00:18.6]} 34. Kh1 {[%clk 0:00:18.5]} 34... Nxc1
{[%clk 0:00:18.3]} 35. Bxc1 {[%clk 0:00:19.4]} 35... Re1+ {[%clk 0:00:18.3]} 36.
Rf1 {[%clk 0:00:19.7]} 36... Qe7 {[%clk 0:00:17.7]} 37. Bb1 {[%clk 0:00:16.2]}
37... Qh4+ {[%clk 0:00:14.1]} 38. Kg1 {[%clk 0:00:15.6]} 38... Bd4+ {[%clk
0:00:13.9]} 0-1

[Event "*** Titled Tuesday Blitz"]
[Site "Chess.com"]
[Date "2020.05.05"]
[Round "2"]
[White "TigrVShlyape"]
[Black "vanyakuba"]
[Result "1-0"]
[WhiteElo "2812"]
[BlackElo "2435"]
[TimeControl "180+1"]
[EndTime "10:18:15 PDT"]
[Termination "TigrVShlyape won on time"]

1. d4 {[%clk 0:03:00.9]} 1... d5 {[%clk 0:02:59.4]} 2. Nf3 {[%clk 0:03:00.5]}
2... c5 {[%clk 0:02:59.3]} 3. dxc5 {[%clk 0:02:54.6]} 3... e6 {[%clk 0:02:59]}
4. c4 {[%clk 0:02:49.2]} 4... Bxc5 {[%clk 0:02:58.6]} 5. cxd5 {[%clk 0:02:46.9]}
5... exd5 {[%clk 0:02:59.5]} 6. Nc3 {[%clk 0:02:42.6]} 6... Nf6 {[%clk
0:02:57.6]} 7. Bg5 {[%clk 0:02:39.6]} 7... Be6 {[%clk 0:02:57.2]} 8. e3 {[%clk
0:02:38.3]} 8... O-O {[%clk 0:02:51.2]} 9. Be2 {[%clk 0:02:37.1]} 9... Nc6
{[%clk 0:02:47.5]} 10. O-O {[%clk 0:02:34.8]} 10... h6 {[%clk 0:02:47.4]} 11.
Bh4 {[%clk 0:02:33.1]} 11... g5 {[%clk 0:02:46.4]} 12. Bg3 {[%clk 0:02:32.6]}
12... Ne4 {[%clk 0:02:45.7]} 13. Rc1 {[%clk 0:02:25.8]} 13... Be7 {[%clk
0:02:14.5]} 14. Nb5 {[%clk 0:02:02.5]} 14... Nxg3 {[%clk 0:02:03.5]} 15. hxg3
{[%clk 0:02:02]} 15... Bf6 {[%clk 0:02:02.6]} 16. Nfd4 {[%clk 0:01:54]} 16...
Nxd4 {[%clk 0:01:40.1]} 17. Nxd4 {[%clk 0:01:53.5]} 17... Qb6 {[%clk 0:01:29.1]}
18. Nxe6 {[%clk 0:01:42.1]} 18... fxe6 {[%clk 0:01:21.4]} 19. Qd3 {[%clk
0:01:34.7]} 19... Kg7 {[%clk 0:01:15.9]} 20. Bh5 {[%clk 0:01:30.9]} 20... Kh8
{[%clk 0:01:10.5]} 21. b3 {[%clk 0:01:24.8]} 21... Rac8 {[%clk 0:01:01.9]} 22.
Qg6 {[%clk 0:01:22]} 22... Bg7 {[%clk 0:01:00.7]} 23. Rxc8 {[%clk 0:01:17.9]}
23... Rxc8 {[%clk 0:01:00.4]} 24. Bg4 {[%clk 0:01:14.9]} 24... Rf8 {[%clk
0:00:23.3]} 25. Rd1 {[%clk 0:00:45.7]} 25... Rf6 {[%clk 0:00:09.7]} 26. Qe8+
{[%clk 0:00:44.8]} 26... Kh7 {[%clk 0:00:10.4]} 27. Be2 {[%clk 0:00:27.8]} 27...
Rf8 {[%clk 0:00:02.9]} 28. Bd3+ {[%clk 0:00:27.5]} 28... Kg8 {[%clk 0:00:03.4]}
29. Qg6 {[%clk 0:00:27.4]} 29... Rf6 {[%clk 0:00:03.2]} 30. Qh7+ {[%clk
0:00:24.6]} 30... Kf8 {[%clk 0:00:02.8]} 31. Rc1 {[%clk 0:00:24.2]} 31... Qd8
{[%clk 0:00:02.2]} 32. Rc2 {[%clk 0:00:20.5]} 32... e5 {[%clk 0:00:02.2]} 33.
Bf5 {[%clk 0:00:19.4]} 1-0

[Event "*** Titled Tuesday Blitz"]
[Site "Chess.com"]
[Date "2020.05.05"]
[Round "2"]
[White "PenguinPacks"]
[Black "GMKrikor"]
[Result "0-1"]
[WhiteElo "2341"]
[BlackElo "2864"]
[TimeControl "180+1"]
[EndTime "10:18:15 PDT"]
[Termination "GMKrikor won by resignation"]

1. e4 {[%clk 0:01:51.1]} 1... c5 {[%clk 0:02:59.5]} 2. Nf3 {[%clk 0:01:48.8]}
2... g6 {[%clk 0:02:59.9]} 3. d4 {[%clk 0:01:49]} 3... cxd4 {[%clk 0:03:00.8]}
4. Nxd4 {[%clk 0:01:48.9]} 4... Nc6 {[%clk 0:03:01.1]} 5. Be3 {[%clk 0:01:47.9]}
5... Nf6 {[%clk 0:03:00.6]} 6. Nc3 {[%clk 0:01:47.9]} 6... Bg7 {[%clk
0:02:59.2]} 7. Nb3 {[%clk 0:01:42.3]} 7... O-O {[%clk 0:02:58.7]} 8. Be2 {[%clk
0:01:34.4]} 8... a5 {[%clk 0:02:58.3]} 9. a4 {[%clk 0:01:30.3]} 9... d6 {[%clk
0:02:58.5]} 10. O-O {[%clk 0:01:21.1]} 10... Be6 {[%clk 0:02:59]} 11. h3 {[%clk
0:01:07.8]} 11... Nb4 {[%clk 0:02:59]} 12. Nd4 {[%clk 0:01:05.2]} 12... Bd7
{[%clk 0:02:54]} 13. f4 {[%clk 0:01:03.7]} 13... Rc8 {[%clk 0:02:53.7]} 14. Bf3
{[%clk 0:01:02.9]} 14... Qc7 {[%clk 0:02:39.5]} 15. Re1 {[%clk 0:00:54.3]} 15...
Rfd8 {[%clk 0:02:35.9]} 16. Qd2 {[%clk 0:00:37.8]} 16... Qc4 {[%clk 0:02:16.6]}
17. Rad1 {[%clk 0:00:33.2]} 17... Qc7 {[%clk 0:01:52.2]} 18. Kh1 {[%clk
0:00:23.6]} 18... Bc6 {[%clk 0:01:45.4]} 19. Bf2 {[%clk 0:00:16.3]} 19... e5
{[%clk 0:01:23.2]} 20. Nde2 {[%clk 0:00:16.5]} 20... b6 {[%clk 0:01:01.4]} 21.
Bg3 {[%clk 0:00:13.9]} 21... Re8 {[%clk 0:00:57.3]} 22. Nb1 {[%clk 0:00:09.1]}
22... Nxe4 {[%clk 0:00:51.4]} 23. Bxe4 {[%clk 0:00:08.3]} 23... Bxe4 {[%clk
0:00:52.3]} 24. c3 {[%clk 0:00:08.3]} 24... Nd3 {[%clk 0:00:47.3]} 25. Rg1
{[%clk 0:00:07.6]} 25... Nc5 {[%clk 0:00:39.9]} 26. Na3 {[%clk 0:00:08]} 26...
Nxa4 {[%clk 0:00:30.9]} 27. Qxd6 {[%clk 0:00:08.4]} 27... Qxd6 {[%clk
0:00:30.1]} 28. Rxd6 {[%clk 0:00:09.3]} 28... exf4 {[%clk 0:00:29.6]} 29. Nxf4
{[%clk 0:00:10.2]} 29... Bf8 {[%clk 0:00:27.4]} 30. Rd4 {[%clk 0:00:09]} 30...
Nxb2 {[%clk 0:00:26.1]} 31. Nb1 {[%clk 0:00:08.4]} 31... f5 {[%clk 0:00:25.5]}
32. Nd2 {[%clk 0:00:06.7]} 32... Ba8 {[%clk 0:00:24.2]} 33. Be1 {[%clk
0:00:06.1]} 33... Bc5 {[%clk 0:00:24.1]} 34. Nf3 {[%clk 0:00:05.4]} 34... Bxf3
{[%clk 0:00:23.2]} 35. gxf3 {[%clk 0:00:05.1]} 35... Bxd4 {[%clk 0:00:23.8]} 36.
cxd4 {[%clk 0:00:05.9]} 36... Rc1 {[%clk 0:00:23.7]} 37. d5 {[%clk 0:00:06.3]}
37... Rexe1 {[%clk 0:00:22.8]} 0-1

[Event "*** Titled Tuesday Blitz"]
[Site "Chess.com"]
[Date "2020.05.05"]
[Round "2"]
[White "cuprichanin"]
[Black "IwkooO"]
[Result "1-0"]
[WhiteElo "2316"]
[BlackElo "2570"]
[TimeControl "180+1"]
[EndTime "10:18:15 PDT"]
[Termination "cuprichanin won on time"]

1. Nc3 {[%clk 0:03:00.9]} 1... c5 {[%clk 0:02:54]} 2. e4 {[%clk 0:03:00.2]} 2...
Nc6 {[%clk 0:02:52]} 3. f4 {[%clk 0:02:58.5]} 3... e6 {[%clk 0:02:52.2]} 4. Nf3
{[%clk 0:02:57.6]} 4... Nge7 {[%clk 0:02:52.5]} 5. d3 {[%clk 0:02:57.7]} 5... d5
{[%clk 0:02:52.7]} 6. g4 {[%clk 0:02:56.7]} 6... g6 {[%clk 0:02:13.2]} 7. Bg2
{[%clk 0:02:55.3]} 7... Bg7 {[%clk 0:02:13.7]} 8. O-O {[%clk 0:02:55]} 8... h5
{[%clk 0:02:13.9]} 9. g5 {[%clk 0:02:54.4]} 9... O-O {[%clk 0:02:06.7]} 10. Nh4
{[%clk 0:02:53.9]} 10... Rb8 {[%clk 0:01:51.9]} 11. Ne2 {[%clk 0:02:40.7]} 11...
c4 {[%clk 0:01:40.4]} 12. e5 {[%clk 0:02:33.9]} 12... b5 {[%clk 0:01:34.6]} 13.
d4 {[%clk 0:02:33.3]} 13... b4 {[%clk 0:01:34.7]} 14. c3 {[%clk 0:02:32.8]}
14... a5 {[%clk 0:01:34.6]} 15. Ng3 {[%clk 0:02:30.9]} 15... Re8 {[%clk
0:01:17.9]} 16. Nxh5 {[%clk 0:02:24.4]} 16... gxh5 {[%clk 0:01:18]} 17. Qxh5
{[%clk 0:02:25.3]} 17... Nf5 {[%clk 0:01:18.5]} 18. Nf3 {[%clk 0:02:08.1]} 18...
a4 {[%clk 0:01:10.8]} 19. a3 {[%clk 0:02:07.2]} 19... bxc3 {[%clk 0:01:05.3]}
20. bxc3 {[%clk 0:02:05.5]} 20... Na5 {[%clk 0:01:01]} 21. g6 {[%clk 0:01:43.5]}
21... fxg6 {[%clk 0:00:41]} 22. Qxg6 {[%clk 0:01:44.4]} 22... Bd7 {[%clk
0:00:18.7]} 23. Ng5 {[%clk 0:01:40.8]} 23... Re7 {[%clk 0:00:18.3]} 24. Bh3
{[%clk 0:01:33.5]} 24... Be8 {[%clk 0:00:08.3]} 25. Qh7+ {[%clk 0:01:28]} 25...
Kf8 {[%clk 0:00:08.7]} 26. Nxe6+ {[%clk 0:01:12.2]} 26... Rxe6 {[%clk
0:00:08.8]} 27. Qxf5+ {[%clk 0:01:12.2]} 27... Bf7 {[%clk 0:00:09.4]} 28. Ra2
{[%clk 0:00:46.5]} 28... Rg6+ {[%clk 0:00:05]} 29. Rg2 {[%clk 0:00:46.2]} 29...
Rxg2+ {[%clk 0:00:04.9]} 30. Bxg2 {[%clk 0:00:45.4]} 30... Qe7 {[%clk
0:00:03.3]} 31. Bxd5 {[%clk 0:00:43.9]} 31... Rd8 {[%clk 0:00:01.7]} 32. Be4
{[%clk 0:00:38.2]} 32... Kg8 {[%clk 0:00:01.5]} 33. Qg4 {[%clk 0:00:36.6]} 33...
Qe6 {[%clk 0:00:01.2]} 34. f5 {[%clk 0:00:36.3]} 34... Qb6 {[%clk 0:00:01.5]}
35. f6 {[%clk 0:00:35.2]} 1-0

[Event "*** Titled Tuesday Blitz"]
[Site "Chess.com"]
[Date "2020.05.05"]
[Round "2"]
[White "nicolochessit"]
[Black "mamonika"]
[Result "1-0"]
[WhiteElo "2363"]
[BlackElo "1965"]
[TimeControl "180+1"]
[EndTime "10:18:16 PDT"]
[Termination "nicolochessit won on time"]

1. Nf3 {[%clk 0:03:00.9]} 1... c5 {[%clk 0:02:57.8]} 2. g3 {[%clk 0:03:01.8]}
2... Nc6 {[%clk 0:02:57.3]} 3. Bg2 {[%clk 0:03:02.3]} 3... d5 {[%clk 0:02:57.4]}
4. O-O {[%clk 0:03:03.2]} 4... Nf6 {[%clk 0:02:56]} 5. d3 {[%clk 0:03:04.1]}
5... e5 {[%clk 0:02:54.9]} 6. c4 {[%clk 0:03:03.9]} 6... d4 {[%clk 0:02:53]} 7.
a3 {[%clk 0:03:02.2]} 7... Be7 {[%clk 0:02:40.2]} 8. Bg5 {[%clk 0:02:58.7]} 8...
O-O {[%clk 0:02:39]} 9. b4 {[%clk 0:02:58.1]} 9... cxb4 {[%clk 0:02:34]} 10.
Bxf6 {[%clk 0:02:57.7]} 10... Bxf6 {[%clk 0:02:31.2]} 11. axb4 {[%clk
0:02:57.9]} 11... Nxb4 {[%clk 0:02:28.3]} 12. Na3 {[%clk 0:02:55]} 12... Bf5
{[%clk 0:02:08.3]} 13. Qa4 {[%clk 0:02:45.9]} 13... a5 {[%clk 0:01:58.9]} 14.
Qb5 {[%clk 0:02:33.8]} 14... Bd7 {[%clk 0:01:45]} 15. Qc5 {[%clk 0:02:19.7]}
15... Rc8 {[%clk 0:01:40.6]} 16. Qa7 {[%clk 0:02:08.4]} 16... Bc6 {[%clk
0:00:38.3]} 17. Nd2 {[%clk 0:02:01.3]} 17... Bxg2 {[%clk 0:00:36.8]} 18. Kxg2
{[%clk 0:02:02.2]} 18... Qc7 {[%clk 0:00:27.4]} 19. Ne4 {[%clk 0:01:38.5]} 19...
Be7 {[%clk 0:00:25.4]} 20. Nb5 {[%clk 0:01:34.4]} 20... Qc6 {[%clk 0:00:25.1]}
21. Qxa5 {[%clk 0:01:28.7]} 21... f5 {[%clk 0:00:23.2]} 22. Na7 {[%clk
0:01:27.4]} 22... Qg6 {[%clk 0:00:13.6]} 23. Nd2 {[%clk 0:01:22.4]} 23... Ra8
{[%clk 0:00:11.3]} 24. Qxe5 {[%clk 0:01:12.3]} 24... Nc6 {[%clk 0:00:10.8]} 25.
Nxc6 {[%clk 0:01:07.7]} 25... Qxc6+ {[%clk 0:00:10.7]} 26. Nf3 {[%clk
0:01:05.9]} 26... Bf6 {[%clk 0:00:03.9]} 27. Qxf5 {[%clk 0:01:05.2]} 27... Rxa1
{[%clk 0:00:03.6]} 28. Rxa1 {[%clk 0:01:06]} 28... g6 {[%clk 0:00:03.6]} 29.
Qd5+ {[%clk 0:01:03.3]} 29... Qxd5 {[%clk 0:00:03.4]} 30. cxd5 {[%clk
0:01:04.2]} 30... Rd8 {[%clk 0:00:03.6]} 31. Ra5 {[%clk 0:01:00.4]} 31... Rd6
{[%clk 0:00:03.5]} 32. Nd2 {[%clk 0:00:59.3]} 32... Bd8 {[%clk 0:00:03.4]} 33.
Rb5 {[%clk 0:00:59.3]} 33... b6 {[%clk 0:00:02.3]} 34. Nc4 {[%clk 0:00:58.6]}
34... Rd7 {[%clk 0:00:02.2]} 35. f4 {[%clk 0:00:57.6]} 35... Bc7 {[%clk
0:00:02]} 36. d6 {[%clk 0:00:54.7]} 36... Bxd6 {[%clk 0:00:01.7]} 37. Rd5 {[%clk
0:00:54]} 37... b5 {[%clk 0:00:01.9]} 38. Rxd6 {[%clk 0:00:53.4]} 38... Rxd6
{[%clk 0:00:01.7]} 39. Nxd6 {[%clk 0:00:54.3]} 39... b4 {[%clk 0:00:01.9]} 40.
Nc4 {[%clk 0:00:54.3]} 40... Kf7 {[%clk 0:00:02.6]} 41. Kf3 {[%clk 0:00:55.1]}
41... Ke6 {[%clk 0:00:03.5]} 42. Ke4 {[%clk 0:00:55.6]} 1-0

[Event "*** Titled Tuesday Blitz"]
[Site "Chess.com"]
[Date "2020.05.05"]
[Round "2"]
[White "Mikhail_Golubev"]
[Black "Maybe00"]
[Result "0-1"]
[WhiteElo "2530"]
[BlackElo "2806"]
[TimeControl "180+1"]
[EndTime "10:18:17 PDT"]
[Termination "Maybe00 won on time"]

1. e4 {[%clk 0:03:00.9]} 1... e5 {[%clk 0:02:59.9]} 2. Nf3 {[%clk 0:02:59.1]}
2... Nc6 {[%clk 0:03:00.1]} 3. Nc3 {[%clk 0:02:59.3]} 3... Nf6 {[%clk 0:03:00]}
4. d4 {[%clk 0:02:59.5]} 4... exd4 {[%clk 0:02:59.8]} 5. Nxd4 {[%clk 0:03:00]}
5... Bb4 {[%clk 0:02:59.8]} 6. Nxc6 {[%clk 0:03:00]} 6... bxc6 {[%clk
0:03:00.7]} 7. Bd3 {[%clk 0:03:00.2]} 7... O-O {[%clk 0:03:00.8]} 8. O-O {[%clk
0:02:59.2]} 8... d5 {[%clk 0:03:00.6]} 9. Bd2 {[%clk 0:02:58.6]} 9... Rb8 {[%clk
0:02:44]} 10. exd5 {[%clk 0:02:50.3]} 10... cxd5 {[%clk 0:02:42.3]} 11. Re1
{[%clk 0:02:37.1]} 11... c6 {[%clk 0:02:40.7]} 12. Qf3 {[%clk 0:02:16.1]} 12...
Bd6 {[%clk 0:02:38.8]} 13. Na4 {[%clk 0:01:32.6]} 13... Bg4 {[%clk 0:02:16.9]}
14. Qe3 {[%clk 0:01:31.7]} 14... Qc7 {[%clk 0:01:37.9]} 15. h3 {[%clk 0:01:18]}
15... Rfe8 {[%clk 0:01:32.1]} 16. Qg5 {[%clk 0:00:57.6]} 16... Be6 {[%clk
0:01:04.5]} 17. Bc3 {[%clk 0:00:55.7]} 17... h6 {[%clk 0:01:04.8]} 18. Qh4
{[%clk 0:00:53.2]} 18... Nd7 {[%clk 0:01:04.3]} 19. b4 {[%clk 0:00:22.6]} 19...
Ne5 {[%clk 0:00:48]} 20. Qd4 {[%clk 0:00:16.1]} 20... f6 {[%clk 0:00:40.5]} 21.
Nc5 {[%clk 0:00:14.4]} 21... Bxc5 {[%clk 0:00:39.7]} 22. Qxc5 {[%clk 0:00:08.4]}
22... Nxd3 {[%clk 0:00:39.9]} 23. cxd3 {[%clk 0:00:08.6]} 23... Qd7 {[%clk
0:00:34]} 24. Bd4 {[%clk 0:00:07.8]} 24... a6 {[%clk 0:00:34]} 25. Rac1 {[%clk
0:00:06.9]} 25... Rbc8 {[%clk 0:00:24.3]} 26. a3 {[%clk 0:00:06.8]} 26... Bf5
{[%clk 0:00:23.9]} 27. Qc3 {[%clk 0:00:06.4]} 27... Kh7 {[%clk 0:00:22.6]} 28.
Re3 {[%clk 0:00:06.1]} 28... Rxe3 {[%clk 0:00:22.4]} 29. Bxe3 {[%clk 0:00:06.2]}
29... Bg6 {[%clk 0:00:21.8]} 30. Qd4 {[%clk 0:00:06]} 30... Qf5 {[%clk
0:00:20.9]} 31. Rc3 {[%clk 0:00:06]} 31... Re8 {[%clk 0:00:19.8]} 32. Rxc6
{[%clk 0:00:03.3]} 32... Qxd3 {[%clk 0:00:20]} 33. Rc7 {[%clk 0:00:01.1]} 33...
Qxd4 {[%clk 0:00:19.9]} 34. Bxd4 {[%clk 0:00:01]} 34... Re1+ {[%clk 0:00:20.4]}
0-1

[Event "*** Titled Tuesday Blitz"]
[Site "Chess.com"]
[Date "2020.05.05"]
[Round "2"]
[White "DenisQ"]
[Black "Apocalyps999"]
[Result "1-0"]
[WhiteElo "2655"]
[BlackElo "2394"]
[TimeControl "180+1"]
[EndTime "10:18:18 PDT"]
[Termination "DenisQ won on time"]

1. Nf3 {[%clk 0:02:59.8]} 1... d5 {[%clk 0:02:57.7]} 2. c4 {[%clk 0:02:58.7]}
2... c6 {[%clk 0:02:57.3]} 3. cxd5 {[%clk 0:02:58.1]} 3... cxd5 {[%clk 0:02:57]}
4. d4 {[%clk 0:02:57.9]} 4... Nf6 {[%clk 0:02:55.2]} 5. Nc3 {[%clk 0:02:56.4]}
5... Nc6 {[%clk 0:02:54.4]} 6. Bf4 {[%clk 0:02:55.6]} 6... a6 {[%clk 0:02:54.3]}
7. Rc1 {[%clk 0:02:54.1]} 7... Bf5 {[%clk 0:02:52]} 8. e3 {[%clk 0:02:53.1]}
8... e6 {[%clk 0:02:50.8]} 9. Qb3 {[%clk 0:02:47.6]} 9... Na5 {[%clk 0:02:49.9]}
10. Qa4+ {[%clk 0:02:44.1]} 10... Nc6 {[%clk 0:02:49.4]} 11. Ne5 {[%clk
0:02:42.1]} 11... Qb6 {[%clk 0:02:24.5]} 12. Be2 {[%clk 0:01:48.7]} 12... Be7
{[%clk 0:02:19.7]} 13. O-O {[%clk 0:01:48.6]} 13... O-O {[%clk 0:02:19.4]} 14.
Nxc6 {[%clk 0:01:48]} 14... bxc6 {[%clk 0:02:19.2]} 15. Qb3 {[%clk 0:01:29.2]}
15... Qxb3 {[%clk 0:01:26.5]} 16. axb3 {[%clk 0:01:29]} 16... Nd7 {[%clk
0:01:25.7]} 17. Na4 {[%clk 0:01:28.4]} 17... Rfc8 {[%clk 0:01:24.8]} 18. Rfd1
{[%clk 0:01:20.7]} 18... a5 {[%clk 0:01:23]} 19. Bd3 {[%clk 0:01:19.3]} 19...
Bxd3 {[%clk 0:01:16.5]} 20. Rxd3 {[%clk 0:01:19.6]} 20... Bb4 {[%clk 0:01:17.1]}
21. Rdd1 {[%clk 0:01:02.3]} 21... c5 {[%clk 0:00:56.2]} 22. dxc5 {[%clk
0:01:01.3]} 22... Bxc5 {[%clk 0:00:55.3]} 23. Kf1 {[%clk 0:00:39.1]} 23... Bb4
{[%clk 0:00:50.5]} 24. Bc7 {[%clk 0:00:37.9]} 24... Kf8 {[%clk 0:00:19.6]} 25.
e4 {[%clk 0:00:36.7]} 25... Ke8 {[%clk 0:00:14.6]} 26. exd5 {[%clk 0:00:36.2]}
26... exd5 {[%clk 0:00:14.9]} 27. Rxd5 {[%clk 0:00:35.4]} 27... Ra7 {[%clk
0:00:15.2]} 28. Rxd7 {[%clk 0:00:23.7]} 28... Kxd7 {[%clk 0:00:04.8]} 29. Nb6+
{[%clk 0:00:23.7]} 29... Ke8 {[%clk 0:00:04]} 30. Nxc8 {[%clk 0:00:24]} 30...
Rb7 {[%clk 0:00:02]} 31. Nd6+ {[%clk 0:00:23.3]} 1-0

[Event "*** Titled Tuesday Blitz"]
[Site "Chess.com"]
[Date "2020.05.05"]
[Round "2"]
[White "Char_dasha"]
[Black "chessuriel"]
[Result "0-1"]
[WhiteElo "2360"]
[BlackElo "2212"]
[TimeControl "180+1"]
[EndTime "10:18:18 PDT"]
[Termination "chessuriel won on time"]

1. c4 {[%clk 0:03:00]} 1... Nf6 {[%clk 0:02:59.2]} 2. Nc3 {[%clk 0:03:00.1]}
2... c5 {[%clk 0:02:59.6]} 3. g3 {[%clk 0:02:59.3]} 3... d5 {[%clk 0:02:59.5]}
4. cxd5 {[%clk 0:02:59]} 4... Nxd5 {[%clk 0:03:00.4]} 5. Bg2 {[%clk 0:02:59.3]}
5... Nc7 {[%clk 0:03:00.8]} 6. Nf3 {[%clk 0:02:53.3]} 6... Nc6 {[%clk
0:02:59.9]} 7. O-O {[%clk 0:02:52.2]} 7... e5 {[%clk 0:02:59.9]} 8. d3 {[%clk
0:02:47.2]} 8... Be7 {[%clk 0:02:59.4]} 9. Be3 {[%clk 0:02:32.8]} 9... O-O
{[%clk 0:02:57.3]} 10. Rc1 {[%clk 0:02:32.9]} 10... Bd7 {[%clk 0:02:49.9]} 11.
Nd2 {[%clk 0:02:04.2]} 11... b6 {[%clk 0:02:25.2]} 12. a3 {[%clk 0:02:00]} 12...
Rc8 {[%clk 0:02:17.7]} 13. h4 {[%clk 0:01:03.5]} 13... Ne6 {[%clk 0:02:08.3]}
14. Nd5 {[%clk 0:01:01.9]} 14... Bd6 {[%clk 0:02:01.9]} 15. Ne4 {[%clk
0:00:57.2]} 15... Bb8 {[%clk 0:01:58.2]} 16. b4 {[%clk 0:00:54.6]} 16... cxb4
{[%clk 0:01:39]} 17. axb4 {[%clk 0:00:54.5]} 17... Ncd4 {[%clk 0:01:33.6]} 18.
Rxc8 {[%clk 0:00:41.3]} 18... Bxc8 {[%clk 0:01:33.4]} 19. Nec3 {[%clk
0:00:39.9]} 19... Kh8 {[%clk 0:01:20.2]} 20. Qd2 {[%clk 0:00:37.4]} 20... Bb7
{[%clk 0:01:17.8]} 21. Qa2 {[%clk 0:00:29.9]} 21... f5 {[%clk 0:01:11.5]} 22.
Rc1 {[%clk 0:00:26.8]} 22... f4 {[%clk 0:01:09.2]} 23. Bd2 {[%clk 0:00:11.6]}
23... fxg3 {[%clk 0:01:05.4]} 24. fxg3 {[%clk 0:00:11.4]} 24... Qe8 {[%clk
0:00:55.7]} 25. Rf1 {[%clk 0:00:10.7]} 25... Rxf1+ {[%clk 0:00:52.2]} 26. Bxf1
{[%clk 0:00:08.7]} 26... Qg6 {[%clk 0:00:51.3]} 27. Kh2 {[%clk 0:00:06.3]} 27...
e4 {[%clk 0:00:49.2]} 28. Nxe4 {[%clk 0:00:04.8]} 28... Qf5 {[%clk 0:00:40.1]}
29. Bh3 {[%clk 0:00:04.1]} 29... Qxd5 {[%clk 0:00:38.1]} 30. Qxd5 {[%clk
0:00:04.2]} 30... Bxd5 {[%clk 0:00:38]} 31. Nc3 {[%clk 0:00:03.2]} 31... Bb3
{[%clk 0:00:32.4]} 32. Kg2 {[%clk 0:00:01.9]} 32... Bd6 {[%clk 0:00:25.1]} 33.
e3 {[%clk 0:00:01.8]} 33... Nc2 {[%clk 0:00:23.2]} 34. Ne4 {[%clk 0:00:01.7]}
34... Bxb4 {[%clk 0:00:21.3]} 35. Bxb4 {[%clk 0:00:01.7]} 35... Nxb4 {[%clk
0:00:21.1]} 0-1